[Event "January 2 Early 2024"]
[Site "https://www.chess.com"]
[Date "2024.01.02"]
[Round "5"]
[White "Firouzja, Alireza"]
[Black "NevorLegov"]
[Result "1-0"]
[Board "15"]
[TimeControl "180+1"]
[WhiteFideId "12573981"]
[WhiteElo "3148"]
[BlackElo "2941"]
[WhiteTeam "FRA"]
[WhiteClock "0:01:20"]
[BlackClock "0:00:43"]

1. d4 {[%clk 0:03:00]}  d5 {[%clk 0:02:59]} 2. Bg5 {[%clk 0:03:00]}  f6 {[%clk 0:02:58]} 3. Bf4 {[%clk 0:03:00]}  Nc6 {[%clk 0:02:58]} 4. Nf3 {[%clk 0:03:00]}  e5 {[%clk 0:02:54]} 5. dxe5 {[%clk 0:02:44]}  g5 {[%clk 0:02:54]} 6. Bg3 {[%clk 0:02:40]}  g4 {[%clk 0:02:55]} 7. Nfd2 {[%clk 0:02:40]}  fxe5 {[%clk 0:02:53]} 8. e4 {[%clk 0:02:40]}  d4 {[%clk 0:02:32]} 9. Bb5 {[%clk 0:02:35]}  Bd6 {[%clk 0:02:28]} 10. Nc4 {[%clk 0:02:35]}  Qf6 {[%clk 0:02:27]} 11. O-O {[%clk 0:02:29]}  Ne7 {[%clk 0:02:25]} 12. f4 {[%clk 0:02:29]}  gxf3 {[%clk 0:02:17]} 13. Nbd2 {[%clk 0:02:27]}  O-O {[%clk 0:02:10]} 14. Rxf3 {[%clk 0:02:24]}  Qg7 {[%clk 0:02:10]} 15. Rxf8+ {[%clk 0:02:24]}  Qxf8 {[%clk 0:02:09]} 16. Qh5 {[%clk 0:02:24]}  Qf7 {[%clk 0:02:00]} 17. Qxf7+ {[%clk 0:02:18]}  Kxf7 {[%clk 0:02:00]} 18. Rf1+ {[%clk 0:02:18]}  Kg7 {[%clk 0:01:56]} 19. Nf3 {[%clk 0:02:19]}  a6 {[%clk 0:01:46]} 20. Bxc6 {[%clk 0:02:19]}  Nxc6 {[%clk 0:01:47]} 21. Ncxe5 {[%clk 0:02:19]}  Nxe5 {[%clk 0:01:32]} 22. Bxe5+ {[%clk 0:02:07]}  Bxe5 {[%clk 0:01:32]} 23. Nxe5 {[%clk 0:02:08]}  Be6 {[%clk 0:01:33]} 24. b3 {[%clk 0:02:08]}  Re8 {[%clk 0:01:33]} 25. Nd3 {[%clk 0:02:01]}  b6 {[%clk 0:01:29]} 26. h4 {[%clk 0:01:42]}  Bf7 {[%clk 0:01:29]} 27. Rf4 {[%clk 0:01:40]}  Bg6 {[%clk 0:01:29]} 28. Nf2 {[%clk 0:01:40]}  h5 {[%clk 0:01:26]} 29. g4 {[%clk 0:01:40]}  hxg4 {[%clk 0:01:26]} 30. Rxg4 {[%clk 0:01:40]}  Kh6 {[%clk 0:01:25]} 31. Kg2 {[%clk 0:01:39]}  Re5 {[%clk 0:01:24]} 32. Kf3 {[%clk 0:01:21]}  Rc5 {[%clk 0:01:23]} 33. Rg2 {[%clk 0:01:20]}  Bh5+ {[%clk 0:01:10]} 34. Kf4 {[%clk 0:01:20]}  Bd1 {[%clk 0:00:43]} 35. Nxd1 {[%clk 0:01:20]} 1-0

[Event "January 2 Early 2024"]
[Site "https://www.chess.com"]
[Date "2024.01.02"]
[Round "5"]
[White "Zou, Chen"]
[Black "Martinez Alcantara, Jose Eduardo"]
[Result "1-0"]
[Board "17"]
[TimeControl "180+1"]
[WhiteFideId "8610959"]
[BlackFideId "3805662"]
[WhiteElo "2741"]
[BlackElo "3062"]
[WhiteTeam "CHN"]
[BlackTeam "PER"]
[WhiteClock "0:00:13"]
[BlackClock "0:00:20"]

1. e4 {[%clk 0:03:00]}  c5 {[%clk 0:02:59]} 2. Nf3 {[%clk 0:03:00]}  d6 {[%clk 0:03:00]} 3. d4 {[%clk 0:02:57]}  cxd4 {[%clk 0:03:01]} 4. Nxd4 {[%clk 0:02:57]}  a6 {[%clk 0:03:01]} 5. Nc3 {[%clk 0:02:55]}  e6 {[%clk 0:03:02]} 6. Be2 {[%clk 0:02:54]}  Nf6 {[%clk 0:03:01]} 7. O-O {[%clk 0:02:48]}  b5 {[%clk 0:03:02]} 8. a3 {[%clk 0:02:46]}  Bb7 {[%clk 0:03:01]} 9. f3 {[%clk 0:02:44]}  Nbd7 {[%clk 0:03:01]} 10. Be3 {[%clk 0:02:44]}  Be7 {[%clk 0:03:01]} 11. Qd2 {[%clk 0:02:44]}  O-O {[%clk 0:03:01]} 12. Rad1 {[%clk 0:02:44]}  Rc8 {[%clk 0:03:01]} 13. Kh1 {[%clk 0:02:45]}  Ne5 {[%clk 0:02:55]} 14. Nb3 {[%clk 0:02:42]}  Qc7 {[%clk 0:02:52]} 15. Qe1 {[%clk 0:02:39]}  Rfd8 {[%clk 0:02:49]} 16. Qf2 {[%clk 0:02:39]}  Ned7 {[%clk 0:02:47]} 17. Bd4 {[%clk 0:02:35]}  d5 {[%clk 0:02:38]} 18. exd5 {[%clk 0:02:33]}  Nxd5 {[%clk 0:02:39]} 19. Nxd5 {[%clk 0:02:27]}  Bxd5 {[%clk 0:02:40]} 20. Bd3 {[%clk 0:02:27]}  Bf6 {[%clk 0:02:40]} 21. Bxf6 {[%clk 0:02:26]}  Nxf6 {[%clk 0:02:41]} 22. Nd4 {[%clk 0:02:25]}  g6 {[%clk 0:02:35]} 23. Qh4 {[%clk 0:02:17]}  Kg7 {[%clk 0:02:35]} 24. Ne2 {[%clk 0:02:12]}  Qe5 {[%clk 0:02:19]} 25. Qd4 {[%clk 0:02:03]}  Qxd4 {[%clk 0:02:10]} 26. Nxd4 {[%clk 0:02:04]}  e5 {[%clk 0:02:11]} 27. Ne2 {[%clk 0:02:04]}  e4 {[%clk 0:02:07]} 28. fxe4 {[%clk 0:02:05]}  Bxe4 {[%clk 0:02:07]} 29. Bxe4 {[%clk 0:01:38]}  Rxd1 {[%clk 0:02:05]} 30. Rxd1 {[%clk 0:01:38]}  Nxe4 {[%clk 0:02:06]} 31. Rd4 {[%clk 0:01:35]}  Nc5 {[%clk 0:02:01]} 32. Nc3 {[%clk 0:01:21]}  Ne6 {[%clk 0:01:48]} 33. Rd2 {[%clk 0:01:14]}  h5 {[%clk 0:01:45]} 34. Kg1 {[%clk 0:01:14]}  h4 {[%clk 0:01:45]} 35. Kf2 {[%clk 0:01:12]}  Rc5 {[%clk 0:01:41]} 36. Ne4 {[%clk 0:01:06]}  Rf5+ {[%clk 0:01:40]} 37. Ke3 {[%clk 0:01:01]}  Rf1 {[%clk 0:01:38]} 38. Nd6 {[%clk 0:00:53]}  Rb1 {[%clk 0:01:30]} 39. c3 {[%clk 0:00:40]}  Nc5 {[%clk 0:01:30]} 40. b4 {[%clk 0:00:40]}  Ne6 {[%clk 0:01:20]} 41. c4 {[%clk 0:00:39]}  bxc4 {[%clk 0:01:14]} 42. Nxc4 {[%clk 0:00:40]}  Re1+ {[%clk 0:01:10]} 43. Kf2 {[%clk 0:00:39]}  Ra1 {[%clk 0:01:09]} 44. Rd6 {[%clk 0:00:36]}  Ra2+ {[%clk 0:01:08]} 45. Rd2 {[%clk 0:00:36]}  Ra1 {[%clk 0:01:09]} 46. Rd6 {[%clk 0:00:36]}  Nc7 {[%clk 0:01:09]} 47. Rc6 {[%clk 0:00:34]}  Ra2+ {[%clk 0:01:09]} 48. Kf3 {[%clk 0:00:32]}  Nd5 {[%clk 0:01:10]} 49. Rd6 {[%clk 0:00:28]}  Nc3 {[%clk 0:00:57]} 50. Rxa6 {[%clk 0:00:27]}  Nb5 {[%clk 0:00:57]} 51. a4 {[%clk 0:00:25]}  Nd4+ {[%clk 0:00:56]} 52. Ke4 {[%clk 0:00:23]}  Ne6 {[%clk 0:00:54]} 53. a5 {[%clk 0:00:22]}  Rxg2 {[%clk 0:00:52]} 54. Rxe6 {[%clk 0:00:18]}  fxe6 {[%clk 0:00:53]} 55. a6 {[%clk 0:00:19]}  Rf2 {[%clk 0:00:21]} 56. a7 {[%clk 0:00:18]}  Rf8 {[%clk 0:00:22]} 57. b5 {[%clk 0:00:18]}  g5 {[%clk 0:00:22]} 58. b6 {[%clk 0:00:18]}  g4 {[%clk 0:00:23]} 59. b7 {[%clk 0:00:14]}  g3 {[%clk 0:00:20]} 60. b8=Q {[%clk 0:00:13]} 1-0

[Event "January 2 Early 2024"]
[Site "https://www.chess.com"]
[Date "2024.01.02"]
[Round "5"]
[White "Iturrizaga Bonelli, Eduardo"]
[Black "Vaibhav Jayant Raut"]
[Result "0-1"]
[Board "19"]
[TimeControl "180+1"]
[WhiteFideId "3901211"]
[BlackFideId "5089034"]
[WhiteElo "3019"]
[BlackElo "2736"]
[WhiteTeam "ESP"]
[BlackTeam "IND"]
[WhiteClock "0:00:04"]
[BlackClock "0:00:03"]

1. c4 {[%clk 0:03:00]}  c5 {[%clk 0:02:59]} 2. Nf3 {[%clk 0:03:00]}  Nf6 {[%clk 0:02:54]} 3. Nc3 {[%clk 0:03:00]}  Nc6 {[%clk 0:02:54]} 4. d4 {[%clk 0:03:00]}  cxd4 {[%clk 0:02:55]} 5. Nxd4 {[%clk 0:03:00]}  g6 {[%clk 0:02:53]} 6. g3 {[%clk 0:03:00]}  Bg7 {[%clk 0:02:53]} 7. Bg2 {[%clk 0:03:00]}  O-O {[%clk 0:02:54]} 8. O-O {[%clk 0:03:01]}  Qa5 {[%clk 0:02:50]} 9. e3 {[%clk 0:03:02]}  d6 {[%clk 0:02:44]} 10. Bd2 {[%clk 0:03:02]}  Bd7 {[%clk 0:02:30]} 11. Re1 {[%clk 0:02:47]}  Rfc8 {[%clk 0:02:21]} 12. b3 {[%clk 0:02:42]}  a6 {[%clk 0:02:21]} 13. Rc1 {[%clk 0:02:39]}  Ne5 {[%clk 0:02:13]} 14. Qe2 {[%clk 0:02:08]}  Rab8 {[%clk 0:02:08]} 15. h3 {[%clk 0:02:05]}  Qd8 {[%clk 0:02:06]} 16. a4 {[%clk 0:02:03]}  h5 {[%clk 0:02:03]} 17. Red1 {[%clk 0:01:50]}  Qb6 {[%clk 0:01:37]} 18. Be1 {[%clk 0:01:46]}  Nc6 {[%clk 0:01:34]} 19. Rb1 {[%clk 0:01:38]}  Nb4 {[%clk 0:01:26]} 20. Qd2 {[%clk 0:01:20]}  Ra8 {[%clk 0:00:48]} 21. a5 {[%clk 0:01:17]}  Qc7 {[%clk 0:00:46]} 22. Rdc1 {[%clk 0:01:02]}  Rab8 {[%clk 0:00:40]} 23. e4 {[%clk 0:00:52]}  Qd8 {[%clk 0:00:34]} 24. Nd5 {[%clk 0:00:49]}  Nc6 {[%clk 0:00:29]} 25. Ne2 {[%clk 0:00:42]}  h4 {[%clk 0:00:22]} 26. g4 {[%clk 0:00:36]}  Qf8 {[%clk 0:00:22]} 27. Nb6 {[%clk 0:00:36]}  Rd8 {[%clk 0:00:22]} 28. f4 {[%clk 0:00:36]}  Nxg4 {[%clk 0:00:19]} 29. hxg4 {[%clk 0:00:35]}  Bxg4 {[%clk 0:00:20]} 30. Bxh4 {[%clk 0:00:35]}  Nxa5 {[%clk 0:00:14]} 31. Qxa5 {[%clk 0:00:33]}  Bxe2 {[%clk 0:00:14]} 32. Bf2 {[%clk 0:00:34]}  Bf6 {[%clk 0:00:13]} 33. Nd5 {[%clk 0:00:34]}  Bg7 {[%clk 0:00:13]} 34. Qd2 {[%clk 0:00:33]}  Bg4 {[%clk 0:00:14]} 35. Bh4 {[%clk 0:00:33]}  f6 {[%clk 0:00:13]} 36. Rf1 {[%clk 0:00:29]}  Bd7 {[%clk 0:00:13]} 37. Rbe1 {[%clk 0:00:28]}  b5 {[%clk 0:00:13]} 38. e5 {[%clk 0:00:26]}  dxe5 {[%clk 0:00:08]} 39. fxe5 {[%clk 0:00:26]}  Bf5 {[%clk 0:00:06]} 40. exf6 {[%clk 0:00:23]}  exf6 {[%clk 0:00:06]} 41. Qf2 {[%clk 0:00:18]}  Rd7 {[%clk 0:00:06]} 42. Be4 {[%clk 0:00:14]}  Bh3 {[%clk 0:00:04]} 43. Bxg6 {[%clk 0:00:14]}  Bxf1 {[%clk 0:00:05]} 44. Rxf1 {[%clk 0:00:14]}  bxc4 {[%clk 0:00:05]} 45. Qf5 {[%clk 0:00:14]}  Qc5+ {[%clk 0:00:04]} 46. Ne3 {[%clk 0:00:06]}  Qxe3+ {[%clk 0:00:04]} 47. Bf2 {[%clk 0:00:06]}  Qe7 {[%clk 0:00:02]} 48. Qh5 {[%clk 0:00:05]}  Qe5 {[%clk 0:00:02]} 49. Qh7+ {[%clk 0:00:04]}  Kf8 {[%clk 0:00:02]} 50. bxc4 {[%clk 0:00:03]}  Qg5+ {[%clk 0:00:02]} 51. Kh1 {[%clk 0:00:03]}  Rb3 {[%clk 0:00:01]} 52. Be4 {[%clk 0:00:03]}  Bh6 {[%clk 0:00:01]} 53. Bg2 {[%clk 0:00:02]}  Rxh7 {[%clk 0:00:01]} 54. Bc5+ {[%clk 0:00:03]}  Kg8 {[%clk 0:00:01]} 55. Bd5+ {[%clk 0:00:03]}  Kh8 {[%clk 0:00:02]} 56. Bd4 {[%clk 0:00:04]}  Bg7# {[%clk 0:00:03]} 0-1

[Event "January 2 Early 2024"]
[Site "https://www.chess.com"]
[Date "2024.01.02"]
[Round "5"]
[White "Syaputra, Arifa Rizki"]
[Black "Movahed, Sina"]
[Result "0-1"]
[Board "20"]
[TimeControl "180+1"]
[WhiteFideId "7105100"]
[BlackFideId "42520835"]
[WhiteElo "2731"]
[BlackElo "3002"]
[WhiteTeam "INA"]
[BlackTeam "IRI"]
[WhiteClock "0:00:19"]
[BlackClock "0:01:15"]

1. Nf3 {[%clk 0:02:59]}  Nf6 {[%clk 0:02:59]} 2. b3 {[%clk 0:02:58]}  g6 {[%clk 0:02:55]} 3. Bb2 {[%clk 0:02:58]}  Bg7 {[%clk 0:02:56]} 4. e3 {[%clk 0:02:54]}  O-O {[%clk 0:02:55]} 5. Be2 {[%clk 0:02:54]}  c5 {[%clk 0:02:53]} 6. O-O {[%clk 0:02:54]}  d5 {[%clk 0:02:53]} 7. d4 {[%clk 0:02:54]}  Ne4 {[%clk 0:02:51]} 8. Qc1 {[%clk 0:02:52]}  cxd4 {[%clk 0:02:49]} 9. Bxd4 {[%clk 0:02:44]}  Bxd4 {[%clk 0:02:39]} 10. Nxd4 {[%clk 0:02:42]}  e5 {[%clk 0:02:36]} 11. Nf3 {[%clk 0:02:41]}  Nc6 {[%clk 0:02:35]} 12. Rd1 {[%clk 0:02:40]}  Be6 {[%clk 0:02:32]} 13. c4 {[%clk 0:02:38]}  d4 {[%clk 0:02:29]} 14. Qb2 {[%clk 0:02:19]}  Qf6 {[%clk 0:02:28]} 15. Nbd2 {[%clk 0:01:43]}  Nc5 {[%clk 0:02:14]} 16. exd4 {[%clk 0:01:37]}  exd4 {[%clk 0:02:15]} 17. Nf1 {[%clk 0:01:21]}  Rad8 {[%clk 0:02:05]} 18. Ng3 {[%clk 0:01:10]}  a5 {[%clk 0:02:00]} 19. a3 {[%clk 0:00:57]}  Rfe8 {[%clk 0:01:56]} 20. Rd2 {[%clk 0:00:57]}  Kg7 {[%clk 0:01:53]} 21. Rad1 {[%clk 0:00:55]}  d3 {[%clk 0:01:53]} 22. Bf1 {[%clk 0:00:52]}  Bg4 {[%clk 0:01:43]} 23. b4 {[%clk 0:00:43]}  Bxf3 {[%clk 0:01:31]} 24. gxf3 {[%clk 0:00:40]}  Qxb2 {[%clk 0:01:21]} 25. Rxb2 {[%clk 0:00:40]}  Na4 {[%clk 0:01:22]} 26. Rb3 {[%clk 0:00:35]}  Nd4 {[%clk 0:01:21]} 27. Rbxd3 {[%clk 0:00:30]}  Nb2 {[%clk 0:01:19]} 28. Rxd4 {[%clk 0:00:26]}  Nxd1 {[%clk 0:01:18]} 29. Rxd8 {[%clk 0:00:26]}  Rxd8 {[%clk 0:01:19]} 30. c5 {[%clk 0:00:24]}  Nc3 {[%clk 0:01:17]} 31. Bc4 {[%clk 0:00:22]}  axb4 {[%clk 0:01:15]} 32. axb4 {[%clk 0:00:19]}  Rd4 {[%clk 0:01:15]} 0-1

[Event "January 2 Early 2024"]
[Site "https://www.chess.com"]
[Date "2024.01.02"]
[Round "5"]
[White "Pap, Gyula"]
[Black "Arabidze, Meri"]
[Result "1/2-1/2"]
[Board "21"]
[TimeControl "180+1"]
[WhiteFideId "725323"]
[BlackFideId "13604040"]
[WhiteElo "2990"]
[BlackElo "2726"]
[WhiteTeam "HUN"]
[BlackTeam "GEO"]
[WhiteClock "0:00:02"]
[BlackClock "0:00:15"]

1. e4 {[%clk 0:03:00]}  c5 {[%clk 0:02:56]} 2. Nf3 {[%clk 0:03:00]}  e6 {[%clk 0:02:56]} 3. d4 {[%clk 0:03:00]}  cxd4 {[%clk 0:02:57]} 4. Qxd4 {[%clk 0:03:00]}  Nc6 {[%clk 0:02:57]} 5. Qe3 {[%clk 0:03:00]}  d6 {[%clk 0:02:56]} 6. Nc3 {[%clk 0:02:49]}  a6 {[%clk 0:02:54]} 7. Bd2 {[%clk 0:02:49]}  Nf6 {[%clk 0:02:54]} 8. O-O-O {[%clk 0:02:47]}  Be7 {[%clk 0:02:51]} 9. h3 {[%clk 0:02:47]}  O-O {[%clk 0:02:51]} 10. e5 {[%clk 0:02:45]}  dxe5 {[%clk 0:02:48]} 11. Nxe5 {[%clk 0:02:45]}  Qc7 {[%clk 0:02:37]} 12. Ng4 {[%clk 0:01:41]}  b5 {[%clk 0:02:22]} 13. Kb1 {[%clk 0:01:41]}  Bb7 {[%clk 0:02:22]} 14. Nxf6+ {[%clk 0:01:32]}  Bxf6 {[%clk 0:02:22]} 15. Ne4 {[%clk 0:01:32]}  Be7 {[%clk 0:02:13]} 16. Bc1 {[%clk 0:01:22]}  Rac8 {[%clk 0:02:07]} 17. Be2 {[%clk 0:01:21]}  Nb4 {[%clk 0:01:48]} 18. c3 {[%clk 0:01:21]}  Nd5 {[%clk 0:01:48]} 19. Qg3 {[%clk 0:01:15]}  Qxg3 {[%clk 0:01:40]} 20. Nxg3 {[%clk 0:01:16]}  b4 {[%clk 0:01:19]} 21. c4 {[%clk 0:01:12]}  Nb6 {[%clk 0:01:20]} 22. b3 {[%clk 0:01:06]}  Bxg2 {[%clk 0:01:19]} 23. Rhg1 {[%clk 0:00:53]}  Bxh3 {[%clk 0:01:11]} 24. Bf3 {[%clk 0:00:45]}  Rcd8 {[%clk 0:00:59]} 25. Be3 {[%clk 0:00:42]}  Nd7 {[%clk 0:00:55]} 26. Rh1 {[%clk 0:00:35]}  Bf5+ {[%clk 0:00:51]} 27. Nxf5 {[%clk 0:00:36]}  exf5 {[%clk 0:00:52]} 28. Rd5 {[%clk 0:00:36]}  g6 {[%clk 0:00:48]} 29. Ra5 {[%clk 0:00:28]}  Bf6 {[%clk 0:00:39]} 30. Rxa6 {[%clk 0:00:28]}  Bc3 {[%clk 0:00:28]} 31. Kc2 {[%clk 0:00:28]}  Ne5 {[%clk 0:00:26]} 32. Bd5 {[%clk 0:00:29]}  Ng4 {[%clk 0:00:26]} 33. a4 {[%clk 0:00:28]}  Rfe8 {[%clk 0:00:19]} 34. Rh3 {[%clk 0:00:25]}  f4 {[%clk 0:00:17]} 35. Bxf4 {[%clk 0:00:08]}  Re2+ {[%clk 0:00:18]} 36. Kb1 {[%clk 0:00:06]}  Nxf2 {[%clk 0:00:16]} 37. Rf3 {[%clk 0:00:05]}  Re1+ {[%clk 0:00:14]} 38. Kc2 {[%clk 0:00:05]}  Re2+ {[%clk 0:00:15]} 39. Kb1 {[%clk 0:00:05]}  Re1+ {[%clk 0:00:15]} 40. Kc2 {[%clk 0:00:03]}  Re2+ {[%clk 0:00:15]} 41. Kc1 {[%clk 0:00:01]}  Re1+ {[%clk 0:00:15]} 42. Kc2 {[%clk 0:00:02]} 1/2-1/2

[Event "January 2 Early 2024"]
[Site "https://www.chess.com"]
[Date "2024.01.02"]
[Round "5"]
[White "Navara, David"]
[Black "Tarhan, Adar"]
[Result "1-0"]
[Board "22"]
[TimeControl "180+1"]
[WhiteFideId "309095"]
[BlackFideId "34544712"]
[WhiteElo "2974"]
[BlackElo "2715"]
[WhiteTeam "CZE"]
[BlackTeam "TUR"]
[WhiteClock "0:01:03"]
[BlackClock "0:00:01"]

1. Nf3 {[%clk 0:03:00]}  Nf6 {[%clk 0:02:58]} 2. c4 {[%clk 0:03:00]}  g6 {[%clk 0:02:56]} 3. Nc3 {[%clk 0:03:00]}  Bg7 {[%clk 0:02:56]} 4. e4 {[%clk 0:03:00]}  O-O {[%clk 0:02:56]} 5. d4 {[%clk 0:02:59]}  c5 {[%clk 0:02:55]} 6. d5 {[%clk 0:02:57]}  e6 {[%clk 0:02:56]} 7. e5 {[%clk 0:02:42]}  Ng4 {[%clk 0:02:56]} 8. Ng5 {[%clk 0:02:42]}  Nxe5 {[%clk 0:02:53]} 9. f4 {[%clk 0:02:42]}  f6 {[%clk 0:02:33]} 10. Nxh7 {[%clk 0:02:41]}  Kxh7 {[%clk 0:02:32]} 11. fxe5 {[%clk 0:02:41]}  fxe5 {[%clk 0:02:31]} 12. h4 {[%clk 0:02:11]}  exd5 {[%clk 0:01:43]} 13. cxd5 {[%clk 0:02:11]}  d6 {[%clk 0:01:43]} 14. Bd3 {[%clk 0:02:01]}  Bf5 {[%clk 0:01:41]} 15. h5 {[%clk 0:02:02]}  g5 {[%clk 0:01:27]} 16. Bxf5+ {[%clk 0:01:55]}  Rxf5 {[%clk 0:01:24]} 17. Qd3 {[%clk 0:01:55]}  e4 {[%clk 0:01:19]} 18. Qxe4 {[%clk 0:01:55]}  Bxc3+ {[%clk 0:01:17]} 19. bxc3 {[%clk 0:01:56]}  Qf6 {[%clk 0:01:17]} 20. Bxg5 {[%clk 0:01:37]}  Qe5 {[%clk 0:01:03]} 21. Rh4 {[%clk 0:01:37]}  Qg3+ {[%clk 0:00:57]} 22. Ke2 {[%clk 0:01:27]}  Qf2+ {[%clk 0:00:37]} 23. Kd3 {[%clk 0:01:25]}  Nd7 {[%clk 0:00:37]} 24. Be3 {[%clk 0:01:12]}  c4+ {[%clk 0:00:18]} 25. Kd4 {[%clk 0:01:13]}  Qxh4 {[%clk 0:00:07]} 26. Qxh4 {[%clk 0:01:13]}  Nf6 {[%clk 0:00:05]} 27. Kxc4 {[%clk 0:01:07]}  Nxd5 {[%clk 0:00:03]} 28. Bd4 {[%clk 0:01:05]}  Rc8+ {[%clk 0:00:03]} 29. Kb3 {[%clk 0:01:04]}  Rf4 {[%clk 0:00:01]} 30. Qg5 {[%clk 0:01:03]} 1-0

[Event "January 2 Early 2024"]
[Site "https://www.chess.com"]
[Date "2024.01.02"]
[Round "5"]
[White "Praggnanandhaa R"]
[Black "Han, Yichen"]
[Result "1-0"]
[Board "26"]
[TimeControl "180+1"]
[WhiteFideId "25059530"]
[BlackFideId "1054430"]
[WhiteElo "2937"]
[BlackElo "2689"]
[WhiteTeam "IND"]
[BlackTeam "NED"]
[WhiteClock "0:00:14"]
[BlackClock "0:00:01"]

1. Nf3 {[%clk 0:03:00]}  d5 {[%clk 0:02:59]} 2. g3 {[%clk 0:03:01]}  Bg4 {[%clk 0:02:58]} 3. Bg2 {[%clk 0:03:01]}  Nd7 {[%clk 0:02:57]} 4. O-O {[%clk 0:03:02]}  Ngf6 {[%clk 0:02:56]} 5. h3 {[%clk 0:03:02]}  Bh5 {[%clk 0:02:55]} 6. c4 {[%clk 0:02:59]}  e6 {[%clk 0:02:52]} 7. cxd5 {[%clk 0:02:56]}  exd5 {[%clk 0:02:52]} 8. d3 {[%clk 0:02:57]}  Be7 {[%clk 0:02:47]} 9. Nh4 {[%clk 0:02:53]}  Bg6 {[%clk 0:02:45]} 10. e4 {[%clk 0:02:48]}  dxe4 {[%clk 0:02:39]} 11. Nxg6 {[%clk 0:02:48]}  hxg6 {[%clk 0:02:38]} 12. dxe4 {[%clk 0:02:48]}  O-O {[%clk 0:02:34]} 13. Qc2 {[%clk 0:02:44]}  c6 {[%clk 0:02:31]} 14. Be3 {[%clk 0:02:43]}  Qa5 {[%clk 0:02:24]} 15. Nd2 {[%clk 0:02:43]}  Rad8 {[%clk 0:02:16]} 16. Rfd1 {[%clk 0:02:28]}  Ne5 {[%clk 0:02:03]} 17. f4 {[%clk 0:02:18]}  Nd3 {[%clk 0:01:47]} 18. Nc4 {[%clk 0:01:59]}  Nb4 {[%clk 0:01:20]} 19. Qb3 {[%clk 0:01:43]}  Qc7 {[%clk 0:01:03]} 20. Qc3 {[%clk 0:01:18]}  Rxd1+ {[%clk 0:00:57]} 21. Rxd1 {[%clk 0:01:18]}  Rd8 {[%clk 0:00:57]} 22. Rxd8+ {[%clk 0:01:15]}  Qxd8 {[%clk 0:00:58]} 23. a3 {[%clk 0:01:07]}  Qd1+ {[%clk 0:00:52]} 24. Kh2 {[%clk 0:01:06]}  Nd3 {[%clk 0:00:52]} 25. Bxa7 {[%clk 0:00:37]}  Ne1 {[%clk 0:00:41]} 26. Qd2 {[%clk 0:00:31]}  Nf3+ {[%clk 0:00:38]} 27. Bxf3 {[%clk 0:00:31]}  Qxf3 {[%clk 0:00:39]} 28. e5 {[%clk 0:00:31]}  Ne4 {[%clk 0:00:28]} 29. Qe3 {[%clk 0:00:30]}  Qxe3 {[%clk 0:00:14]} 30. Bxe3 {[%clk 0:00:30]}  Bc5 {[%clk 0:00:08]} 31. Bxc5 {[%clk 0:00:26]}  Nxc5 {[%clk 0:00:09]} 32. b4 {[%clk 0:00:23]}  Nd3 {[%clk 0:00:04]} 33. Na5 {[%clk 0:00:15]}  c5 {[%clk 0:00:03]} 34. b5 {[%clk 0:00:13]}  b6 {[%clk 0:00:02]} 35. Nc4 {[%clk 0:00:14]}  Nc1 {[%clk 0:00:02]} 36. Nxb6 {[%clk 0:00:14]}  Nb3 {[%clk 0:00:03]} 37. Nc4 {[%clk 0:00:14]}  Kf8 {[%clk 0:00:01]} 38. b6 {[%clk 0:00:14]} 1-0

[Event "January 2 Early 2024"]
[Site "https://www.chess.com"]
[Date "2024.01.02"]
[Round "5"]
[White "Makhnev, Denis"]
[Black "Agibileg, Uurtsaikh"]
[Result "1-0"]
[Board "27"]
[TimeControl "180+1"]
[WhiteFideId "13707647"]
[BlackFideId "4901606"]
[WhiteElo "2926"]
[BlackElo "2687"]
[WhiteTeam "KAZ"]
[BlackTeam "MGL"]
[WhiteClock "0:00:15"]
[BlackClock "0:00:00"]

1. d4 {[%clk 0:03:00]}  Nf6 {[%clk 0:02:56]} 2. c4 {[%clk 0:03:00]}  e6 {[%clk 0:02:55]} 3. Nc3 {[%clk 0:03:00]}  Bb4 {[%clk 0:02:55]} 4. e3 {[%clk 0:03:00]}  d6 {[%clk 0:02:51]} 5. Ne2 {[%clk 0:02:56]}  Nc6 {[%clk 0:02:50]} 6. a3 {[%clk 0:02:56]}  Bxc3+ {[%clk 0:02:50]} 7. Nxc3 {[%clk 0:02:57]}  O-O {[%clk 0:02:47]} 8. Be2 {[%clk 0:02:56]}  a5 {[%clk 0:02:43]} 9. O-O {[%clk 0:02:54]}  Re8 {[%clk 0:02:43]} 10. b3 {[%clk 0:02:54]}  e5 {[%clk 0:02:43]} 11. Bb2 {[%clk 0:02:54]}  Bf5 {[%clk 0:02:34]} 12. Re1 {[%clk 0:02:53]}  Bg6 {[%clk 0:02:18]} 13. Bf3 {[%clk 0:02:49]}  Qd7 {[%clk 0:01:57]} 14. Nd5 {[%clk 0:02:46]}  Ne4 {[%clk 0:01:36]} 15. dxe5 {[%clk 0:02:30]}  Nxe5 {[%clk 0:01:37]} 16. Be2 {[%clk 0:02:30]}  c6 {[%clk 0:01:35]} 17. Nb6 {[%clk 0:02:21]}  Qf5 {[%clk 0:01:35]} 18. f3 {[%clk 0:02:22]}  Rad8 {[%clk 0:01:24]} 19. fxe4 {[%clk 0:02:20]}  Qg5 {[%clk 0:01:24]} 20. Bf3 {[%clk 0:02:08]}  Nxf3+ {[%clk 0:01:20]} 21. Qxf3 {[%clk 0:02:06]}  Bxe4 {[%clk 0:01:14]} 22. Qg3 {[%clk 0:02:06]}  Qh6 {[%clk 0:00:59]} 23. Re2 {[%clk 0:01:50]}  Re6 {[%clk 0:00:59]} 24. Qf4 {[%clk 0:01:45]}  Qh5 {[%clk 0:00:58]} 25. Rf2 {[%clk 0:01:44]}  h6 {[%clk 0:00:49]} 26. b4 {[%clk 0:01:41]}  Bg6 {[%clk 0:00:36]} 27. h3 {[%clk 0:01:15]}  Re4 {[%clk 0:00:35]} 28. Qg3 {[%clk 0:01:15]}  Rde8 {[%clk 0:00:20]} 29. Re1 {[%clk 0:01:15]}  R4e6 {[%clk 0:00:16]} 30. Bd4 {[%clk 0:01:06]}  Kh7 {[%clk 0:00:13]} 31. c5 {[%clk 0:01:04]}  dxc5 {[%clk 0:00:12]} 32. bxc5 {[%clk 0:01:04]}  f6 {[%clk 0:00:11]} 33. Nc4 {[%clk 0:01:03]}  Be4 {[%clk 0:00:10]} 34. Nd6 {[%clk 0:01:03]}  R8e7 {[%clk 0:00:10]} 35. Rf4 {[%clk 0:00:54]}  Bd5 {[%clk 0:00:09]} 36. Nf5 {[%clk 0:00:47]}  Rd7 {[%clk 0:00:09]} 37. Qg4 {[%clk 0:00:29]}  Qe8 {[%clk 0:00:08]} 38. e4 {[%clk 0:00:29]}  Bc4 {[%clk 0:00:06]} 39. Nd6 {[%clk 0:00:29]}  Rdxd6 {[%clk 0:00:06]} 40. cxd6 {[%clk 0:00:29]}  Rxd6 {[%clk 0:00:06]} 41. e5 {[%clk 0:00:30]}  fxe5 {[%clk 0:00:05]} 42. Rxe5 {[%clk 0:00:30]}  Qd8 {[%clk 0:00:05]} 43. Qf5+ {[%clk 0:00:20]}  Rg6 {[%clk 0:00:04]} 44. Rg4 {[%clk 0:00:20]}  Qd6 {[%clk 0:00:00]} 45. Re7 {[%clk 0:00:15]} 1-0